Cogmind - Beta 17 @@@ ROGUE MODE // 2026.08.01 @ 16:36:12 Player: Petvaria Result: Self-destructed Performance ------------- Evolutions (3) 1500 Regions Visited (15) 3000 Robots Destroyed (247) 1235 Value Destroyed (7942) 7942 Prototype IDs (52) 1040 Alien Tech Used (0) 0 Bonus (15920) 15920 TOTAL SCORE: 30637 Bonus ------- High Alert Combat Kills 1293 Follower Combat Kills 127 Prayed to X0-1V1 5000 Major X0-1V1 Interference 7400 Entered Garrisons 200 Aligned with FarCom 300 Met Imprinter 300 Destroyed Z-Imprinter 1000 Acquired ECA 300 Cogmind --------- Core Integrity 280/930 Matter 49/300 Energy 99/100 System Corruption 10% Temperature Cool (0) Movement Core (50) Location -6/Proximity Caves Parts ------- > --- POWER (1) -------- (None) > --- PROPULSION (5) --- (None) > --- UTILITY (3) ------ (None) > --- WEAPON (4) ------- (None) > --- INVENTORY (5) ---- Improved Terrain Scanner Core Analyzer Transmission Jammer Zionite Weapon Casing Improved Heavy Laser Peak State ------------ > --- POWER ------------ Enhanced Fission Core > --- PROPULSION ------- Light Treads Armored Treads Armored Treads Armored Treads Medium Treads > --- UTILITY ---------- Huge Storage Unit Experimental Targeting Computer Zionite Weapon Casing > --- WEAPON ----------- Zionite Phaser-S Zionite Phaser-S Heavy Ion Cannon Precision Rocket Launcher > --- INVENTORY -------- Enhanced Fission Core Light Treads Light Treads Cooling System Coolant Injector Improved Terrain Scanner Core Analyzer Weapon Cycler Transmission Jammer Hardened Medium Armor Plating Hacking Drone Bay Improved Heavy Laser Heavy Gatling Laser Heavy Gatling Laser Heavy Gatling Laser Heavy Gatling Laser Heavy Wave Gun Heavy Wave Gun Heavy Wave Gun Heavy Ion Cannon Heavy Ion Cannon Gauss Rifle Improved Datajack RU-N14's Throwing Claymores RU-N14's Throwing Claymores [Rating: 70] Favorites ----------- Power Enhanced Fission Core Engine Deuterium Engine Power Core Enhanced Fission Core Propulsion Armored Treads Treads Armored Treads Leg Aluminum Leg Wheel Compact Wheel Utility Experimental Targeting Computer Device X0-1V1's Piety Tracker Storage Huge Storage Unit Processor Experimental Targeting Computer Protection Medium Reflective Plating Weapon Heavy Assault Rifle Energy Gun Improved Heavy Laser Energy Cannon Heavy Ion Cannon Ballistic Gun Heavy Assault Rifle Launcher Precision Rocket Launcher Special Weapon RU-N14's Throwing Claymores Special Melee Weapon Improved Datajack Build | -11 -10 -10 -9 -9 -9 -8 -8 -8 -8 -7 -7 -7 -7 -7 -6 ------- Run | Yrd Mat Min Mat Min Exi Min Mat Gar Mat Fac Low Low Zio Dee Pro Slots Evolved 6 | . . . 2 . . . 2 . . 2 . . . . . Power . | . . . . . . . . . . . . . . . . Propulsion 3 | . . . 1 . . . 1 . . 1 . . . . . Utility 2 | . . . . . . . 1 . . 1 . . . . . Weapon 1 | . . . 1 . . . . . . . . . . . . Parts Attached 159 | 6 10 . 8 2 9 5 35 3 25 27 3 5 6 15 . Power 14 | 1 1 . 1 . . . 4 . 3 3 . . . 1 . Engine 9 | 1 1 . 1 . . . 3 . 2 1 . . . . . Core 5 | . . . . . . . 1 . 1 2 . . . 1 . Reactor . | . . . . . . . . . . . . . . . . Propulsion 47 | 2 3 . 2 . 2 3 16 . 7 6 1 3 2 . . Treads 39 | 2 2 . 2 . 2 . 12 . 7 6 1 3 2 . . Leg 7 | . . . . . . 3 4 . . . . . . . . Wheel 1 | . 1 . . . . . . . . . . . . . . Hover . | . . . . . . . . . . . . . . . . Flight . | . . . . . . . . . . . . . . . . Utility 38 | 1 4 . 4 2 2 1 5 . 4 7 2 . 2 4 . Device 21 | . 2 . 4 2 . 1 2 . 2 4 2 . 2 . . Storage 7 | 1 2 . . . . . 1 . 2 . . . . 1 . Processor 3 | . . . . . . . 1 . . 2 . . . . . Hackware . | . . . . . . . . . . . . . . . . Protection 7 | . . . . . 2 . 1 . . 1 . . . 3 . Artifact . | . . . . . . . . . . . . . . . . Weapon 60 | 2 2 . 1 . 5 1 10 3 11 11 . 2 2 10 . Energy Gun 23 | 1 . . . . 1 . 3 . 6 3 . 1 . 8 . Energy Cannon 6 | . 2 . . . 1 . 1 . . 2 . . . . . Ballistic Gun 21 | 1 . . 1 . 3 1 5 1 5 4 . . . . . Ballistic Cannon . | . . . . . . . . . . . . . . . . Launcher 4 | . . . . . . . 1 1 . 2 . . . . . Special Weapon 5 | . . . . . . . . . . . . 1 2 2 . Impact Weapon . | . . . . . . . . . . . . . . . . Slashing Weapon . | . . . . . . . . . . . . . . . . Piercing Weapon . | . . . . . . . . . . . . . . . . Special Melee Weapon 1 | . . . . . . . . 1 . . . . . . . Unidentified Prototypes 26 | . 1 . . . . . 9 . 3 6 . . 2 5 . Corrupted Parts 1 | . . . . . . . . . . 1 . . . . . System Corruption 7 | . . . . . . . . . . 7 . . . . . Parts Lost 50 | . 3 . . . 6 2 1 . 2 8 1 3 . 24 . Power 6 | . 2 . . . 1 . . . 1 . . . . 2 . Propulsion 22 | . 1 . . . 3 2 1 . . 5 1 2 . 7 . Utility 6 | . . . . . 1 . . . . . . . . 5 . Weapon 16 | . . . . . 1 . . . 1 3 . 1 . 10 . Highest Loss Streak 20 | . 1 . . . 3 2 1 . 2 2 1 2 . 20 . To Critical Strikes 5 | . . . . . 3 . . . . . . . . 2 . Average Backups 18 | 3 10 14 14 14 12 11 13 14 16 24 24 24 24 23 5 Power . | . . . . 1 1 1 1 1 1 . 1 1 1 . . Propulsion 2 | 2 2 2 1 1 1 . 2 2 3 3 2 1 2 1 . Utility 6 | . 1 5 4 6 4 3 4 4 5 8 8 9 9 8 4 Weapon 8 | . 5 7 7 6 4 6 5 6 5 10 11 10 11 12 1 Tool/Special . | . . . . . . . . . . . . . . . . Unused Backups 56 | . 7 . 2 1 5 . 18 1 3 11 1 . 4 2 1 Power 4 | . . . . . 3 . . . 1 . . . . . . Propulsion 9 | . 3 . . . . . 3 1 1 1 . . . . . Utility 17 | . . . . . 2 . 6 . . 3 1 . 3 1 1 Weapon 26 | . 4 . 2 1 . . 9 . 1 7 . . 1 1 . Tool/Special . | . . . . . . . . . . . . . . . . Average Slot Usage (%) 96 | . 91 85 94 100 94 78 98 100 99 99 100 99 96 90 . Engine 4 | . 7 . 9 11 9 . 5 9 7 3 . . . . . Core 3 | . . . . . . . 3 . 1 3 7 7 7 6 . Treads 31 | . 24 28 22 33 30 8 25 36 28 30 38 37 38 35 . Leg 1 | . . . . . . 15 9 . . . . . . . . Device 6 | . 13 14 11 11 5 1 7 . 8 6 7 7 5 . . Storage 8 | . 14 14 11 11 11 11 9 9 9 7 7 7 7 6 . Processor 6 | . . . . . . . 6 9 9 12 7 7 7 6 . Protection 2 | . . . . . 3 9 4 9 . . . . 1 6 . Energy Gun 9 | . 10 . . . 1 8 7 8 17 13 7 9 11 7 . Energy Cannon 6 | . 7 28 22 22 14 4 2 . . 4 7 7 6 6 . Ballistic Gun 12 | . 10 . 7 11 16 20 16 17 17 13 15 12 6 2 . Peak Build Rating 70 | 6 22 22 26 26 28 26 48 47 58 68 65 65 68 70 2 Average Rating 44 | 4 11 21 18 22 20 15 41 46 46 55 57 60 62 58 2 On Entrance 31 | . 6 21 22 15 26 13 15 47 46 43 57 56 65 67 2 Avg Prop Armor Cover (%) 12 | . 15 . 19 . . . 7 7 . . . . . 4 . Naked Turns 31 | . . . . . . . . . . . . . . 27 4 Heaviest Build 133 | 13 29 29 38 38 39 30 48 48 112 123 114 118 133 133 . Greatest Support 108 | 40 40 40 60 60 60 40 104 104 104 105 100 108 108 108 3 Greatest Overweight (x) 28 | . 1 . 2 . . 1 1 . 1 1 1 1 1 28 . Average Overweight (x) . | . . . 1 . . . . . . 1 1 1 . . . Largest Inventory Capacity 25 | 8 15 15 15 15 15 15 15 15 25 25 25 25 25 25 5 Average Capacity 19 | 6 11 15 15 15 15 15 15 15 18 25 25 25 25 24 5 Most Carried 25 | 6 15 15 15 15 15 15 15 15 24 25 25 25 25 25 5 Average Carried 18 | 3 10 14 14 14 13 12 14 14 16 24 24 24 24 23 5 Final Capacity 25 | 8 15 15 15 15 15 15 15 15 25 25 25 25 25 5 5 Final Carried 25 | 6 14 15 15 15 9 15 15 15 23 25 24 25 25 5 5 Class Distribution -------------------- 44% | Scavenger-Gunner 31% | Gunner 8% | Mutant 6% | Skirmisher 4% | Scavenger-Tank 3% | Scavenger-Mutant Dominant Class ---------------- Mutant | -10/Materials Mutant | -10/Mines Gunner | -9/Materials Scavenger-Gunner | -9/Mines Scavenger-Gunner | -9/Exiles Scavenger-Tank | -8/Mines Gunner | -8/Materials Gunner | -8/Garrison Gunner | -8/Materials Skirmisher | -7/Factory Scavenger-Gunner | -7/Lower Caves Scavenger-Gunner | -7/Lower Caves Scavenger-Gunner | -7/Zion Scavenger-Gunner | -7/Deep Caves Scavenger-Gunner | -6/Proximity Caves Resources | -11 -10 -10 -9 -9 -9 -8 -8 -8 -8 -7 -7 -7 -7 -7 -6 ----------- Run | Yrd Mat Min Mat Min Exi Min Mat Gar Mat Fac Low Low Zio Dee Pro Matter Collected 6400 | 244 384 . 89 148 138 498 1100 611 1302 1141 177 301 163 104 . Remotely . | . . . . . . . . . . . . . . . . Salvage Created 10316 | . 528 15 301 264 28 542 1747 788 2047 2953 176 576 . 351 . Parts 491 | . 28 3 12 23 . 20 105 42 90 135 8 20 . 5 . Haulers Intercepted 16 | . 1 . . . . . 5 . 6 4 . . . . . Recyclers Shooed 5 | . 1 . . . . 2 1 . . 1 . . . . . Parts Field Recycled . | . . . . . . . . . . . . . . . . Retrieved Matter . | . . . . . . . . . . . . . . . . Parts Self-Destructed 18 | . . . . . . . . . . . 8 10 . . . Prevented 4 | . . . . . . . . . . . 4 . . . . Parts Restored . | . . . . . . . . . . . . . . . . Kills | -11 -10 -10 -9 -9 -9 -8 -8 -8 -8 -7 -7 -7 -7 -7 -6 ------- Run | Yrd Mat Min Mat Min Exi Min Mat Gar Mat Fac Low Low Zio Dee Pro Combat Hostiles Destroyed 262 | . 19 1 6 10 1 11 34 19 25 46 3 8 . 79 . Guns 150 | . 19 . . 1 1 8 29 17 25 33 2 3 . 12 . Cannons 49 | . . 1 6 9 . 3 5 . . 11 1 5 . 8 . AOE 63 | . . . . . . . . 2 . 2 . . . 59 . Classes Destroyed 23 | . 4 . 1 2 1 2 1 . 4 4 1 2 . 1 . Worker 12 | . 1 . . 1 . . 4 . 3 3 . . . . . Builder 6 | . . . . . . . 1 . 2 3 . . . . . Tunneler 2 | . . . . 1 . . . . . 1 . . . . . Hauler 16 | . 1 . . . . . 5 . 6 4 . . . . . Recycler 17 | . . . . . . 3 3 . 6 5 . . . . . Mechanic 1 | . . . . . . . . . 1 . . . . . . Operator 2 | . . . . . . . . . 2 . . . . . . Drone 1 | . . . . . . . . . . . . 1 . . . Watcher 3 | . . . . . . . . . 3 . . . . . . Swarmer 58 | . 12 1 . 7 . 6 16 4 5 7 . . . . . Grunt 64 | . 7 . 2 2 . 4 9 5 11 18 1 5 . . . Brawler 6 | . . . . 1 . . 1 . 1 2 . 1 . . . Duelist 1 | . . . . . . . . . . 1 . . . . . Protector 1 | . . . . . . . . . . 1 . . . . . Sentry 33 | . . . 4 . . . 8 9 6 5 . 1 . . . Specialist 2 | . . . . . . . . . . 2 . . . . . Hunter 8 | . . . . . . 1 . 1 1 4 1 . . . . Programmer 4 | . . . . . . . . . . 4 . . . . . Heavy 3 | . . . . . . . . . 1 2 . . . . . Behemoth 1 | . . . . . . . . . . . 1 . . . . Z-Technician 5 | . . . . . . . . . . . . . . 5 . Z-Light 6 | . . . . . . . . . . . . . . 6 . Samaritan 4 | . . . . . . . . . . . . 4 . . . Assembled 73 | . . . . . 1 . . . . . . . . 72 . Best Kill Streak 56 | . 6 1 3 8 1 7 6 6 8 8 1 4 . 56 . Combat Bots Only 56 | . 6 1 3 7 1 3 4 6 7 7 1 4 . 56 . Max Kills in Single Turn 12 | . 2 1 1 1 1 1 2 2 2 3 1 1 . 12 . Gunslinging 1 | . 1 . . . . . 1 . 1 . . . . . . Exploded 12 | . . . . . . . . 2 . 2 . . . 12 . Melee . | . . . . . . . . . . . . . . . . Uniques/NPCs Destroyed 2 | . . . . . 1 . . . . . . . . 1 . 8R-AWN (-9/Exiles) Z-Imprinter (-7/Deep Caves) Combat | -11 -10 -10 -9 -9 -9 -8 -8 -8 -8 -7 -7 -7 -7 -7 -6 -------- Run | Yrd Mat Min Mat Min Exi Min Mat Gar Mat Fac Low Low Zio Dee Pro Hostile Shots Fired 1092 | . 112 1 21 26 29 44 102 92 72 226 17 83 . 267 . Missed 336 | . 30 . 7 5 8 12 30 32 16 78 3 24 . 91 . Hits 756 | . 82 1 14 21 21 32 72 60 56 148 14 59 . 176 . Melee 52 | . . . . . 1 . . . . 8 3 16 . 24 . Projectile 704 | . 82 1 14 21 20 32 72 60 56 140 11 43 . 152 . AOE 1 | . . . . . . . . . . 1 . . . . . Critical Strikes 23 | . . . . . 7 . 1 3 . 4 . 2 . 6 . Part Disruptions 6 | . . . . . . . . 1 . . . . . 5 . Damage Taken 11396 | . 739 7 193 186 568 352 733 833 832 2525 289 481 . 3658 . Core 1693 | . 138 7 44 31 44 13 83 126 95 246 . 21 . 845 . Absorbed by Shields 46 | . . . . . . . . 46 . . . . . . . Redirected to Shielding 2 | . . . . . . 2 . . . . . . . . . Ignored by Resistances 618 | . . . 16 11 . 20 78 100 68 148 8 52 . 117 . Regen/Repaired (Parts) 624 | . . . . . . . . . 384 . . . 240 . . Core Remaining (%) 77 | 100 . 88 . . . 42 . . 78 . . . . . . Volleys Fired 563 | . 62 1 14 13 14 28 91 48 70 135 9 23 1 54 . Largest 5 | . 2 2 3 3 3 3 3 3 4 5 4 4 1 4 . Hottest 376 | . 70 136 156 156 96 144 152 116 234 283 181 246 65 376 . Shots Fired 1577 | . 123 2 41 39 40 82 239 132 258 413 36 93 1 78 . Gun 1287 | . 121 . 13 13 40 71 205 131 257 303 27 71 . 35 . Cannon 260 | . 2 2 28 26 . 11 34 . . 108 9 22 1 17 . Launcher 17 | . . . . . . . . 1 1 2 . . . 13 . Special 13 | . . . . . . . . . . . . . . 13 . Kinetic 779 | . 61 . 13 13 38 57 151 88 135 167 18 38 . . . Thermal 751 | . 62 2 28 26 2 25 88 43 122 244 18 55 1 35 . Explosive 30 | . . . . . . . . 1 1 2 . . . 26 . Electromagnetic . | . . . . . . . . . . . . . . . . Phasic 17 | . . . . . . . . . . . . . . 17 . Robot Hit Streak 73 | . 16 17 23 23 8 13 26 29 59 73 15 15 . 13 . Robot Miss Streak 6 | . 3 . 1 3 3 5 2 2 3 4 2 4 . 6 . Penetration Max 1 | . . . . . . . . . 1 1 . . . . . Secondary Targets 21 | . 4 . . . . . 4 3 6 2 . . . 2 . Max Gunslinging Chain 1 | . 1 . . . . . 1 1 1 1 . . . 1 . Shots Hit Robots 1034 | . 77 1 28 20 30 49 142 104 186 266 28 55 . 48 . Core Hits 550 | . 32 1 11 14 9 23 66 34 84 114 10 24 . 128 . Critical Kills 3 | . . . . . . 1 1 . 1 . . . . . . Critical Parts Destroyed 5 | . . . . . 1 . 1 . 1 2 . . . . . Critical Strikes 35 | . 3 . . . 3 1 4 3 10 8 1 1 . 1 . Burn 23 | . 3 . . . 1 . 1 3 8 5 1 1 . . . Meltdown 1 | . . . . . . 1 . . . . . . . . . Destroy 10 | . . . . . 2 . 3 . 2 3 . . . . . Sever 1 | . . . . . . . . . . . . . . 1 . Melee Attacks 8 | . . . . . . . . 8 . . . . . . . Impact . | . . . . . . . . . . . . . . . . Slashing . | . . . . . . . . . . . . . . . . Piercing . | . . . . . . . . . . . . . . . . Sneak Attacks 8 | . . . . . . . . 8 . . . . . . . Combat Hostiles . | . . . . . . . . . . . . . . . . Follow-up Attacks . | . . . . . . . . . . . . . . . . Damage Inflicted 32877 | . 825 21 484 413 332 790 2669 2051 4032 6785 613 1384 . 12478 . Guns 16827 | . 810 . 51 34 332 613 2091 1914 3981 4751 420 1008 . 822 . Cannons 3741 | . . 21 431 367 . 164 495 . . 1373 193 376 . 321 . Explosions 11615 | . . . . . . . . 130 . 614 . . . 10871 . Melee . | . . . . . . . . . . . . . . . . Ramming 230 | . 15 . 2 12 . 13 83 7 51 47 . . . . . Kinetic 8118 | . 309 . 51 34 298 425 1396 1067 1626 2203 289 420 . . . Thermal 14407 | . 501 21 431 367 34 352 1190 847 2355 4181 324 964 . 2840 . Explosive 9295 | . . . . . . . . 130 . 354 . . . 8811 . Electromagnetic . | . . . . . . . . . . . . . . . . Impact . | . . . . . . . . . . . . . . . . Slashing 464 | . . . . . . . . . . . . . . 464 . Piercing . | . . . . . . . . . . . . . . . . Phasic 363 | . . . . . . . . . . . . . . 363 . Highest Corruption 25 | . 2 10 . . . . 3 1 3 8 8 25 25 10 10 Average Corruption 5 | . 2 2 . . . . 2 1 1 7 8 14 25 9 10 Corruption Purged . | . . . . . . . . . . . . . . . . Corruption Blocked . | . . . . . . . . . . . . . . . . Effects 175 | . 6 . . . . . 28 6 14 36 24 51 5 5 . Message Errors 41 | . 2 . . . . . 3 2 4 10 8 10 1 1 . Matter Fused 39 | . 1 . . . . . 8 2 3 8 7 8 2 . . Heat Flow Errors 22 | . 1 . . . . . 4 . 1 4 4 8 . . . Energy Discharges 16 | . . . . . . . 4 1 1 3 3 3 . 1 . Parts Rejected 3 | . . . . . . . . . . 2 . 1 . . . Parts Fused 4 | . . . . . . . . . 2 . 1 1 . . . Data Loss (minor) 22 | . 2 . . . . . 2 . 3 1 1 9 2 2 . Data Loss (major) 7 | . . . . . . . 2 . . 2 . 3 . . . Misfires 10 | . . . . . . . 4 1 . 1 . 4 . . . Alerts 2 | . . . . . . . . . . 1 . 1 . . . Misdirections 1 | . . . . . . . . . . . . . . 1 . Weapon Failures 8 | . . . . . . . 1 . . 4 . 3 . . . Overload Shots . | . . . . . . . . . . . . . . . . Overflow Damage 850 | . . . . . . . . . 2 7 . 3 . 838 . Projectiles 73 | . . . . . . . . . . 1 . 3 . 69 . Explosions 775 | . . . . . . . . . . 6 . . . 769 . Melee 2 | . . . . . . . . . 2 . . . . . . Knockbacks . | . . . . . . . . . . . . . . . . Impact . | . . . . . . . . . . . . . . . . Kinetic . | . . . . . . . . . . . . . . . . Secondary . | . . . . . . . . . . . . . . . . Self-Inflicted Damage 690 | . . . 1 . . . . . . 293 . . . 396 . Shots 5 | . . . . . . . . . . 4 . . . 1 . Rammed 30 | . 6 . 1 3 . . 4 3 8 5 . . . . . Targets Rammed 42 | . 7 . 1 4 . 4 8 3 9 6 . . . . . Kicked 8 | . . . . . . 4 4 . . . . . . . . Crushed 4 | . 1 . . 1 . . . . 1 1 . . . . . Highest Temperature 544 | . 184 60 114 188 54 317 273 347 405 544 273 462 12 428 . Average Temperature 93 | . 54 33 41 68 25 117 60 112 83 123 111 115 9 95 . Received Heat Transfer 2442 | . 183 . 69 42 . 90 288 228 306 513 24 264 . 435 . Effects 22 | . . . . . . 3 . 5 2 7 . 3 . 2 . Energy Bleed 8 | . . . . . . . . 1 . 6 . . . 1 . Interference 6 | . . . . . . 3 . 2 . . . . . 1 . Matter Decay 2 | . . . . . . . . 1 . 1 . . . . . Short Circuit 1 | . . . . . . . . . 1 . . . . . . Damage (minor) 3 | . . . . . . . . 1 1 . . 1 . . . Damage (major) 2 | . . . . . . . . . . . . 2 . . . Siege Activations . | . . . . . . . . . . . . . . . . Martial Activations . | . . . . . . . . . . . . . . . . Shielding Activations . | . . . . . . . . . . . . . . . . Robots Disrupted . | . . . . . . . . . . . . . . . . Combat Hostiles . | . . . . . . . . . . . . . . . . Robots Corrupted . | . . . . . . . . . . . . . . . . Combat Hostiles . | . . . . . . . . . . . . . . . . Parts Fried 1 | . . . . . . . . . . 1 . . . . . Impact Corruptions 1 | . . . . . . . . . 1 . . . . . . Robots Melted 4 | . . . . . . 1 . . 3 . . . . . . Combat Hostiles . | . . . . . . . . . . . . . . . . Parts Melted 45 | . 3 . 2 2 . 7 6 1 8 12 1 3 . . . Heat Transferred 22248 | . 1702 37 777 666 148 703 2035 1423 4936 6582 592 1480 . 1167 . Parts Sabotaged . | . . . . . . . . . . . . . . . . Parts Stolen 2 | . . . . . . . . . . . 2 . . . . Parts Stripped . | . . . . . . . . . . . . . . . . Power Chain Reactions . | . . . . . . . . . . . . . . . . Alert | -11 -10 -10 -9 -9 -9 -8 -8 -8 -8 -7 -7 -7 -7 -7 -6 ------- Run | Yrd Mat Min Mat Min Exi Min Mat Gar Mat Fac Low Low Zio Dee Pro Maximum Alert Level 4 | . . . . . . 1 2 3 3 4 . . . . . Low Security (%) 37 | 100 100 100 100 100 . 42 65 . . . . . . . . Level 1 25 | . . . . . . 57 34 12 . 58 . . . . . Level 2 14 | . . . . . . . . 34 40 16 . . . . . Level 3 20 | . . . . . . . . 52 59 17 . . . . . Level 4 1 | . . . . . . . . . . 6 . . . . . Level 5 . | . . . . . . . . . . . . . . . . High Security . | . . . . . . . . . . . . . . . . Max Security . | . . . . . . . . . . . . . . . . Peak Influence 1253 | . 182 65 87 97 . 320 410 1041 851 1253 . . . . . Initial 507 | . . 25 25 22 . . 111 268 507 337 . . . . . Average 375 | . 90 29 48 40 . 159 171 664 680 515 . . . . . Influence Increases 6323 | . 506 60 177 252 . 494 1221 793 906 1634 80 200 . . . Destroy 0b10 Robot/C 3760 | . 380 20 120 200 . 220 680 500 520 900 60 160 . . . Destroy 0b10 Robot/NC 305 | . 10 . . 10 . 15 65 . 120 85 . . . . . Destroy Leader 800 | . 82 10 40 30 . 50 160 20 150 228 20 10 . . . Allied During Kill 65 | . . . . 12 . . 8 36 9 . . . . . . Successful Hack 58 | . 19 . . . . . 9 7 23 . . . . . . Disable Machine 270 | . . . 15 . . . 45 30 30 150 . . . . . Anti-Garrison Action 200 | . . . . . . . . 200 . . . . . . . Destroy Structure 190 | . . . 2 . . . 28 . 54 106 . . . . . Partial Spotted 15 | . . . . . . . . . . 15 . . . . . Lose Combat Pursuer 270 | . 15 30 . . . 15 30 . . 150 . 30 . . . Miscellaneous 390 | . . . . . . 194 196 . . . . . . . . Influence Decreases 6323 | . 440 61 185 240 69 206 1096 165 1204 1128 783 581 165 . . Entered New Map 2180 | . . 41 40 35 69 . 177 145 534 406 463 105 165 . . Time Decay 3534 | . 410 20 145 145 . 186 620 . 610 642 310 446 . . . Lost Part 200 | . 30 . . . . 20 10 . 20 80 10 30 . . . Lost Ally 120 | . . . . 60 . . . 20 40 . . . . . . Purge Threat 289 | . . . . . . . 289 . . . . . . . . Squads Dispatched 28 | . 4 . . . . 1 2 . 5 16 . . . . . Investigation 3 | . 2 . . . . . . . . 1 . . . . . Extermination 4 | . . . . . . . . . . 4 . . . . . Reinforcement 13 | . 2 . . . . 1 2 . 2 6 . . . . . Assault 1 | . . . . . . . . . . 1 . . . . . Garrison 7 | . . . . . . . . . 3 4 . . . . . Intercept . | . . . . . . . . . . . . . . . . Searches Triggered . | . . . . . . . . . . . . . . . . Construction Impeded 2 | . . . . . . 1 1 . . . . . . . . Haulers Reinforced 2 | . . . . . . . . . . 2 . . . . . Active Scanning Responses . | . . . . . . . . . . . . . . . . Cargo Convoy Interrupts 1 | . . . . . . . . . . 1 . . . . . Stealth | -11 -10 -10 -9 -9 -9 -8 -8 -8 -8 -7 -7 -7 -7 -7 -6 --------- Run | Yrd Mat Min Mat Min Exi Min Mat Gar Mat Fac Low Low Zio Dee Pro Distress Signals 24 | . 3 . 1 . . 1 6 . 5 8 . . . . . Communications Jammed 1 | . . . . . . . . . . 1 . . . . . Distress Signals . | . . . . . . . . . . . . . . . . Times Spotted 378 | . 32 3 8 9 5 12 53 28 39 62 5 8 . 114 . Peak Tracking Total 64 | . 4 2 3 6 9 3 5 5 5 6 2 4 . 64 . Tactical Retreats 19 | . 2 1 . . 2 1 2 . . 8 . 1 . 2 . Traps | -11 -10 -10 -9 -9 -9 -8 -8 -8 -8 -7 -7 -7 -7 -7 -6 ------- Run | Yrd Mat Min Mat Min Exi Min Mat Gar Mat Fac Low Low Zio Dee Pro Traps Triggered 9 | . 2 . . . . . 2 3 2 . . . . . . Indirectly . | . . . . . . . . . . . . . . . . Trap Hack Attempts . | . . . . . . . . . . . . . . . . Triggered . | . . . . . . . . . . . . . . . . Disarmed . | . . . . . . . . . . . . . . . . Reprogrammed . | . . . . . . . . . . . . . . . . Reused . | . . . . . . . . . . . . . . . . Traps Extracted . | . . . . . . . . . . . . . . . . Installed . | . . . . . . . . . . . . . . . . Triggered . | . . . . . . . . . . . . . . . . Machines | -11 -10 -10 -9 -9 -9 -8 -8 -8 -8 -7 -7 -7 -7 -7 -6 ---------- Run | Yrd Mat Min Mat Min Exi Min Mat Gar Mat Fac Low Low Zio Dee Pro Machines Disabled 28 | . . . 1 . 4 . 3 5 2 10 . . . 3 . Max in Single Turn 5 | . . . 1 . 1 . 1 1 1 5 . . . 1 . Garrison Access 1 | . . . . . . . . . 1 . . . . . . Garrison Relay 3 | . . . . . . . . 3 . . . . . . . Machines Repaired . | . . . . . . . . . . . . . . . . Machines Dismantled . | . . . . . . . . . . . . . . . . Machines Sabotaged . | . . . . . . . . . . . . . . . . Overloaded Fab Kills . | . . . . . . . . . . . . . . . . Hacking | -11 -10 -10 -9 -9 -9 -8 -8 -8 -8 -7 -7 -7 -7 -7 -6 --------- Run | Yrd Mat Min Mat Min Exi Min Mat Gar Mat Fac Low Low Zio Dee Pro Machines Accessed 32 | . 3 . . . 2 . 7 3 11 4 . 1 1 . . Terminals 18 | . 2 . . . . . 5 3 5 3 . . . . . Fabricators . | . . . . . . . . . . . . . . . . Repair Stations 3 | . 1 . . . . . . . 2 . . . . . . Recycling Units 2 | . . . . . . . . . 2 . . . . . . Scanalyzers 2 | . . . . . . . 1 . 1 . . . . . . Garrison Access 3 | . . . . . . . 1 . 1 1 . . . . . Total Hacks 77 | . 7 . . . 2 . 23 8 27 5 . 1 4 . . Successful 32 | . 2 . . . 2 . 8 1 14 . . 1 4 . . Failed 43 | . 4 . . . . . 14 7 13 5 . . . . . Catastrophic 15 | . 1 . . . . . 4 2 5 3 . . . . . Database Lockouts 2 | . 1 . . . . . 1 . . . . . . . . Manual 38 | . 6 . . . 1 . 15 . 10 2 . . 4 . . Terminals 41 | . 5 . . . . . 15 8 10 3 . . . . . Fabricators . | . . . . . . . . . . . . . . . . Repair Stations 11 | . 2 . . . . . . . 9 . . . . . . Recycling Units 3 | . . . . . . . . . 3 . . . . . . Scanalyzers 8 | . . . . . . . 4 . 4 . . . . . . Garrison Access 7 | . . . . . . . 4 . 1 2 . . . . . Terminal Hacks 11 | . 1 . . . 2 . 2 1 . . . 1 4 . . Record 1 | . . . . . 1 . . . . . . . . . . Part Schematic 5 | . 1 . . . . . . . . . . . 4 . . Open Door 2 | . . . . . . . . 1 . . . 1 . . . Unreport Threat 2 | . . . . . . . 2 . . . . . . . . Proto ID Catalog 1 | . . . . . 1 . . . . . . . . . . Fabricator Hacks . | . . . . . . . . . . . . . . . . Repair Station Hacks 6 | . 1 . . . . . . . 5 . . . . . . Scan Component 4 | . 1 . . . . . . . 3 . . . . . . Repair 2 | . . . . . . . . . 2 . . . . . . Recycling Unit Hacks 2 | . . . . . . . . . 2 . . . . . . Retrieve Components 2 | . . . . . . . . . 2 . . . . . . Scanalyzer 6 | . . . . . . . 2 . 4 . . . . . . Retrieve Study 6 | . . . . . . . 2 . 4 . . . . . . Garrison Access Hacks 2 | . . . . . . . 1 . 1 . . . . . . Unlock Access 1 | . . . . . . . 1 . . . . . . . . Seal Access 1 | . . . . . . . . . 1 . . . . . . Unauthorized Hacks 5 | . . . . . . . 3 . 2 . . . . . . Terminals 5 | . . . . . . . 3 . 2 . . . . . . Botnet 5 | . . . . . . . 3 . 2 . . . . . . Fabricators . | . . . . . . . . . . . . . . . . Repair Stations . | . . . . . . . . . . . . . . . . Recycling Units . | . . . . . . . . . . . . . . . . Scanalyzers . | . . . . . . . . . . . . . . . . Garrison Access . | . . . . . . . . . . . . . . . . Data Cores Recovered . | . . . . . . . . . . . . . . . . Used . | . . . . . . . . . . . . . . . . Hacking Detections 20 | . 2 . . . . . 4 2 8 4 . . . . . Full Trace Events 3 | . . . . . . . . 1 1 1 . . . . . Feedback Events . | . . . . . . . . . . . . . . . . Feedback Blocked . | . . . . . . . . . . . . . . . . Robot Schematics Acquired 3 | . . . . . . . . . . . . . 3 . . Robots Built . | . . . . . . . . . . . . . . . . Authchips . | . . . . . . . . . . . . . . . . Time . | . . . . . . . . . . . . . . . . Total Robot Build Rating . | . . . . . . . . . . . . . . . . Part Schematics Acquired 21 | . 1 . . . . . . . . . . . 20 . . Parts Built . | . . . . . . . . . . . . . . . . Authchips . | . . . . . . . . . . . . . . . . Time . | . . . . . . . . . . . . . . . . Total Part Build Rating . | . . . . . . . . . . . . . . . . Part Studies Acquired 5 | . . . . . . . 2 . 3 . . . . . . Parts Repaired 2 | . . . . . . . . . 2 . . . . . . Time 138 | . . . . . . . . . 138 . . . . . . Parts Recycled . | . . . . . . . . . . . . . . . . Recycled Matter . | . . . . . . . . . . . . . . . . Retrieved Matter . | . . . . . . . . . . . . . . . . Retrieved Components 20 | . . . . . . . . . 20 . . . . . . Parts Scanalyzed . | . . . . . . . . . . . . . . . . Part Schematics Acquired . | . . . . . . . . . . . . . . . . Parts Damaged . | . . . . . . . . . . . . . . . . Bothacking | -11 -10 -10 -9 -9 -9 -8 -8 -8 -8 -7 -7 -7 -7 -7 -6 ------------ Run | Yrd Mat Min Mat Min Exi Min Mat Gar Mat Fac Low Low Zio Dee Pro Used RIF Installer . | . . . . . . . . . . . . . . . . Robots Hacked 1 | . . . . . . . . 1 . . . . . . . Non-combat . | . . . . . . . . . . . . . . . . Combat 1 | . . . . . . . . 1 . . . . . . . Robot Hacks Applied 1 | . . . . . . . . 1 . . . . . . . parse_system 1 | . . . . . . . . 1 . . . . . . . Relay Couplers Released 11 | . . . . . . . . 11 . . . . . . . Machine Destruction 11 | . . . . . . . . 11 . . . . . . . Fabnet Peak Effective % . | . . . . . . . . . . . . . . . . Robots Rewired 5 | . . . . . . . . 5 . . . . . . . Allies Hacked . | . . . . . . . . . . . . . . . . Hacks Repelled . | . . . . . . . . . . . . . . . . Allies | -11 -10 -10 -9 -9 -9 -8 -8 -8 -8 -7 -7 -7 -7 -7 -6 -------- Run | Yrd Mat Min Mat Min Exi Min Mat Gar Mat Fac Low Low Zio Dee Pro Total Allies 13 | . . . . 4 . . 1 5 3 . . . . . . Largest Group 4 | . . . . 4 . . 1 3 3 . . . . . . Highest-Rated Group 71 | . . . . 71 . . 57 51 63 . . . . . . Highest-Rated Ally 57 | . . . . 31 . . 57 31 31 . . . . . . Initial Warlord ECA Mod 5 | . . . . . . . . . 5 4 4 4 4 4 3 Total Orders . | . . . . . . . . . . . . . . . . Ally Attacks 54 | . . . . 12 14 . . 20 8 . . . . . . Total Damage 1759 | . . . . 118 732 . . 765 144 . . . . . . Kills 12 | . . . . 1 3 . . 6 2 . . . . . . Allies Corrupted . | . . . . . . . . . . . . . . . . Allies Melted . | . . . . . . . . . . . . . . . . Turrets Deployed 3 | . . . . . 2 . . 1 . . . . . . . X0-1V1 Amusement Gains 255 | . 10 . 5 . 60 . 5 20 30 30 . . . 95 . Good Acts 46 | . 1 7 1 . . 4 12 7 5 8 . 1 . . . Bad Acts 43 | . 2 4 2 . . 6 5 6 9 3 1 5 . . . Intel | -11 -10 -10 -9 -9 -9 -8 -8 -8 -8 -7 -7 -7 -7 -7 -6 ------- Run | Yrd Mat Min Mat Min Exi Min Mat Gar Mat Fac Low Low Zio Dee Pro Active Infowar (turns) 3690 | . 732 . . . . . . . . 1220 589 875 274 . . Terrain 2835 | . . . . . . . . . . 1119 567 875 274 . . Structural 732 | . 732 . . . . . . . . . . . . . . Jamming 123 | . . . . . . . . . . 101 22 . . . . Robot Analysis Total . | . . . . . . . . . . . . . . . . Derelict Logs Recovered 4 | . . . . 1 . . . . . . 1 1 1 . . Drone Launches . | . . . . . . . . . . . . . . . . Drone Recoveries . | . . . . . . . . . . . . . . . . Exploration | -11 -10 -10 -9 -9 -9 -8 -8 -8 -8 -7 -7 -7 -7 -7 -6 ------------- Run | Yrd Mat Min Mat Min Exi Min Mat Gar Mat Fac Low Low Zio Dee Pro Turns Passed 17236 | 98 1169 48 347 401 1513 525 2192 912 1988 2307 694 1114 2455 1469 4 Spaces Moved 7612 | 65 512 29 171 212 873 255 1152 433 822 733 298 422 1051 577 7 Core 86 | 21 . . . . . . . . . . . . . 58 7 Treads 6829 | 44 453 29 8 212 873 98 834 433 822 733 298 422 1051 519 . Legs 475 | . . . . . . 157 318 . . . . . . . . Wheels 222 | . 59 . 163 . . . . . . . . . . . . Hover . | . . . . . . . . . . . . . . . . Flight . | . . . . . . . . . . . . . . . . Fastest Speed 50 | 50 115 160 115 160 160 120 120 160 160 217 220 220 166 50 50 Average Speed 187 | 124 159 160 128 160 160 157 150 161 189 229 220 232 227 221 50 Slowest Speed 1450 | 160 240 160 160 160 160 240 190 162 246 246 220 238 238 1450 50 Overloaded Moves . | . . . . . . . . . . . . . . . . Propulsion Burnouts . | . . . . . . . . . . . . . . . . Robots Hopped . | . . . . . . . . . . . . . . . . Potential Cave-ins . | . . . . . . . . . . . . . . . . Cave-ins Triggered . | . . . . . . . . . . . . . . . . Exploration Rate (%) 48 | 3 92 14 15 44 62 45 91 65 58 21 73 55 84 53 4 Regions Visited 15 Branch Regions 9 Pre-discovered Areas 3 | . . . . . 1 . . . . . 1 . 1 . . Known Exits Taken 4 | . . 1 . . . 1 1 . 1 . . . . . . Unknown Exits Taken 10 | 1 1 . 1 1 1 . . . . 1 1 1 1 1 . Scrap Searched 8 | . . 1 . 1 . 1 . . . . 2 . 3 . . Spaces Dug 27 | . . . . . . . 13 . 2 12 . . . . . Terrain Destroyed 368 | . . . . . . . 20 . 70 129 3 15 . 131 . Melee . | . . . . . . . . . . . . . . . . Projectile 79 | . . . . . . . 20 . 16 23 3 15 . 2 . AOE 289 | . . . . . . . . . 54 106 . . . 129 . Terrain Rammed . | . . . . . . . . . . . . . . . . Walls Destroyed . | . . . . . . . . . . . . . . . . Machines Disabled . | . . . . . . . . . . . . . . . . Actions | -11 -10 -10 -9 -9 -9 -8 -8 -8 -8 -7 -7 -7 -7 -7 -6 --------- Run | Yrd Mat Min Mat Min Exi Min Mat Gar Mat Fac Low Low Zio Dee Pro Total 9429 | 82 752 29 266 245 967 312 1453 540 1071 1090 314 502 1108 691 7 Wait 613 | . 125 . 60 5 48 4 67 24 85 108 . 38 25 24 . Move 7598 | 64 511 28 170 211 872 254 1152 432 821 732 297 421 1050 576 7 Hop . | . . . . . . . . . . . . . . . . Pick Up 173 | 12 21 . 8 5 11 10 34 2 24 29 3 6 5 3 . Fast Attach 57 | . 2 . 1 . . . 16 . 9 13 1 . 6 9 . Attach 61 | 6 3 . 2 . 4 3 5 . 4 13 1 6 . 14 . Detach 3 | . . . . . . . . . . 3 . . . . . Swap 129 | . 8 . 7 3 6 9 23 7 23 23 2 5 10 3 . Drop 168 | . 13 . 3 4 12 . 57 2 26 28 1 3 11 8 . Fire 563 | . 62 1 14 13 14 28 91 48 70 135 9 23 1 54 . Melee 8 | . . . . . . . . 8 . . . . . . . Ram 1 | . . . 1 . . . . . . . . . . . . Kick 8 | . . . . . . 4 4 . . . . . . . . Crush 33 | . 7 . . 4 . . 4 3 9 6 . . . . . Escape Stasis . | . . . . . . . . . . . . . . . . Rewire 14 | . . . . . . . . 14 . . . . . . . Trap . | . . . . . . . . . . . . . . . . Miscellaneous . | . . . . . . . . . . . . . . . . Route ------- -11/Scrapyard -10/Materials (discovered 5 exits: *Mat x3 / [*Min] / [*Sub]) -10/Mines (discovered 2 exits: *Mat x2) -9/Materials -9/Mines (discovered 3 exits: *Mat x2 / *Exi) -9/Exiles -8/Mines (discovered 2 exits: *Mat x2) -8/Materials (discovered 4 exits: *Fac x3 / Gar) -8/Garrison (discovered 2 exits: *Mat x2) -8/Materials (discovered 2 exits: *Fac x2) -7/Factory (discovered 2 exits: *Fac / [*Low]) -7/Lower Caves -7/Lower Caves (discovered 2 exits: *Fac / *Zio) -7/Zion (discovered 2 exits: [*Dee] / [*Pro]) -7/Deep Caves -6/Proximity Caves History --------- Turn | Location | Event 3 | -11/Scrapyard | Discovered new exit (range 16) 99 | -11/Scrapyard | Entered Materials 311 | -10/Materials | Build established: Mutant 331 | -10/Materials | Discovered new exit (range 16) 411 | -10/Materials | Central database locked down 442 | -10/Materials | Discovered new exit (range 6) 699 | -10/Materials | Discovered new exit (range 14) 801 | -10/Materials | Discovered new exit (range 13) 834 | -10/Materials | Discovered new exit (range 7) 846 | -10/Materials | Prayed at D.C.S.S. Altar Unit 899 | -10/Materials | Derelicts attacked the area 1255 | -10/Materials | Core integrity fell below 50% 1268 | -10/Materials | Entered Mines 1276 | -10/Mines | Identified exit to Materials 1276 | -10/Mines | X0-1V1 revealed exit location to -9/Materials 1284 | -10/Mines | X0-1V1 sent someone to keep an eye on you 1288 | -10/Mines | TH resistance permanently improved by X0-1V1 (+10%; -100 max core) 1300 | -10/Mines | X0-1V1 sent you into danger 1304 | -10/Mines | Core integrity restored by X0-1V1 (+28) 1305 | -10/Mines | X0-1V1 activates XOMVISION 1305 | -10/Mines | Discovered exit to Materials (range 7) 1312 | -10/Mines | System corruption reached 10% 1316 | -10/Mines | Entered Materials 1316 | -9/Materials | Evolved 2 slots: Propulsion x1, Weapon x1 1382 | -9/Materials | Ranged accuracy permanently improved by X0-1V1 (+7%; -70 max core) 1476 | -9/Materials | X0-1V1 announced a LAN party 1623 | -9/Materials | Discovered new exit (range 9) 1663 | -9/Materials | Entered Mines 1690 | -9/Mines | Identified exit to Materials 1694 | -9/Mines | Met a Derelict bent on vengeance 1768 | -9/Mines | Discovered exit to Materials (range 5) 1795 | -9/Mines | Assisted by bots powering up and referring to "LRC-V3" 1904 | -9/Mines | Received a Mining Laser from a helpful Derelict 1963 | -9/Mines | Build established: Scavenger-Gunner 2018 | -9/Mines | Lost 4 allies 2026 | -9/Mines | Destroyed 7 combat bots 2056 | -9/Mines | Deemed a non-threat by the Exiles lab entrance 2057 | -9/Mines | Discovered new exit (range 5) 2064 | -9/Mines | Entered Exiles 2101 | -9/Exiles | Met 8R-AWN 2130 | -9/Exiles | Met EX-HEX 2175 | -9/Exiles | Met EX-BIN 2200 | -9/Exiles | Aligned with FarCom system 2202 | -9/Exiles | Given EX-Vault access code 2239 | -9/Exiles | Opened EX-Vault 2254 | -9/Exiles | Found Deploy-a-Sentry 2287 | -9/Exiles | Warned to stay clear of 0b10 Research branches 2335 | -9/Exiles | Met EX-DEC 2403 | -9/Exiles | Learned location of Zion (-7) 2574 | -9/Exiles | Found Deploy-a-Sentry 2577 | -9/Exiles | Found Deploy-a-Sentry 3116 | -9/Exiles | Attacked by the Exiles 3146 | -9/Exiles | DAS Turret deployed 3170 | -9/Exiles | Build established: Scavenger-Tank 3212 | -9/Exiles | Core integrity fell below 50% 3215 | -9/Exiles | DAS Turret deployed 3234 | -9/Exiles | Allies destroyed 8R-AWN 3258 | -9/Exiles | Lost 3 parts (3n) 3355 | -9/Exiles | Lost 3 parts (1p1u1w) 3555 | -9/Exiles | Discovered new exit (range 14) 3577 | -9/Exiles | Left Exiles lab with Deploy-a-Sentry 3577 | -9/Exiles | Entered Mines 3799 | -8/Mines | X0-1V1 added 0b10 threat records associated with you (considerable) 4005 | -8/Mines | Discovered exit to Materials (range 13) 4020 | -8/Mines | X0-1V1 sent you into danger 4045 | -8/Mines | X0-1V1 revealed exit location to -8/Materials 4102 | -8/Mines | Entered Materials 4102 | -8/Materials | Evolved 2 slots: Propulsion x1, Utility x1 4217 | -8/Materials | Core integrity permanently improved by X0-1V1 (+400) 4419 | -8/Materials | Build established: Scavenger-Gunner 4629 | -8/Materials | Central database locked down 4744 | -8/Materials | Identified exit to Factory 4744 | -8/Materials | X0-1V1 revealed exit location to -7/Factory 4756 | -8/Materials | X0-1V1 sent you to a vault 4804 | -8/Materials | Found Prototype Processor 4804 | -8/Materials | Identified Exp. Targeting Computer 4844 | -8/Materials | X0-1V1 sent allied Chaos Knight (x1) 4997 | -8/Materials | Build established: Gunner 5623 | -8/Materials | Discovered exit to Factory (range 3) 6111 | -8/Materials | Discovered exit to Factory (range 11) 6275 | -8/Materials | X0-1V1 added 0b10 threat records associated with you (considerable) 6294 | -8/Materials | Identified exit to Garrison 6294 | -8/Materials | Entered Garrison 6304 | -8/Garrison | X0-1V1 vaporized surrounding terrain (radius 18) 6322 | -8/Garrison | Triggered checkpoint 6376 | -8/Garrison | Triggered checkpoint 6409 | -8/Garrison | Garrison Relay disabled 6594 | -8/Garrison | Triggered checkpoint 6598 | -8/Garrison | DAS Turret deployed 6627 | -8/Garrison | Triggered checkpoint 6698 | -8/Garrison | Triggered checkpoint 6701 | -8/Garrison | X0-1V1 upgraded hostiles (x2) 6743 | -8/Garrison | Triggered checkpoint 6770 | -8/Garrison | Triggered checkpoint 6782 | -8/Garrison | Garrison Relay disabled 6867 | -8/Garrison | Discovered new exit (range 10) 6928 | -8/Garrison | Triggered checkpoint 6994 | -8/Garrison | X0-1V1 sent you into danger 7085 | -8/Garrison | Garrison Relay disabled 7134 | -8/Garrison | Triggered checkpoint 7175 | -8/Garrison | Discovered new exit (range 12) 7182 | -8/Garrison | Core integrity restored by X0-1V1 (+140) 7206 | -8/Garrison | Entered Materials 7206 | -8/Materials | Accompanied by 2 allies 7423 | -8/Materials | X0-1V1 mutated your Propulsion slot to Weapon slot 7734 | -8/Materials | Repaired Arm. Treads 7879 | -8/Materials | X0-1V1 redirected Transport squads to designated parking area 7965 | -8/Materials | X0-1V1 sent you into danger 7972 | -8/Materials | Garrison activated, responded to threat 8029 | -8/Materials | Repaired Broken Imp. Heavy Laser? 8041 | -8/Materials | Destroyed 7 combat bots 8135 | -8/Materials | Discovered exit to Factory (range 16) 8343 | -8/Materials | X0-1V1 sent you into danger 8486 | -8/Materials | Discovered exit to Factory (range 13) 8492 | -8/Materials | X0-1V1 foreshadows a heat wave 8526 | -8/Materials | X0-1V1 vaporized surrounding terrain (radius 17) 8762 | -8/Materials | Ambient heat levels rising (+10) 8841 | -8/Materials | X0-1V1 sent you to a vault 9056 | -8/Materials | Ambient heat levels rising (+10) 9194 | -8/Materials | Entered Factory 9194 | -7/Factory | Evolved 2 slots: Propulsion x1, Utility x1 9211 | -7/Factory | Lost 3 allies 9293 | -7/Factory | X0-1V1 sent hostile H-55 Commando (x2) 9498 | -7/Factory | Build established: Skirmisher 9788 | -7/Factory | Discovered new exit (range 18) 10190 | -7/Factory | Identified exit to Factory 10317 | -7/Factory | Cargo convoy interrupted 10380 | -7/Factory | Garrison activated, responded to threat 10423 | -7/Factory | Weapon slot count temporarily expanded by X0-1V1 (+1) 10791 | -7/Factory | X0-1V1 sent you to a vault 10794 | -7/Factory | First assault squad dispatched 10893 | -7/Factory | X0-1V1 mutated your Utility slot to Propulsion slot 11104 | -7/Factory | Garrison activated, responded to threat 11151 | -7/Factory | X0-1V1 activates XOMVISION 11189 | -7/Factory | Build established: Scavenger-Gunner 11258 | -7/Factory | X0-1V1 redirected Transport squads to designated parking area 11301 | -7/Factory | Discovered new exit (range 9) 11395 | -7/Factory | Destroyed 7 combat bots 11501 | -7/Factory | Entered Lower Caves 11502 | -7/Lower Caves | Graphene Brace stolen by Master Thief 11503 | -7/Lower Caves | Encountered a Master Thief 11503 | -7/Lower Caves | Encountered a Master Thief 11504 | -7/Lower Caves | Hvy. Wave Gun stolen by Master Thief 11509 | -7/Lower Caves | Met a Warlord Commander 11510 | -7/Lower Caves | Learned location of Warlord (-4) 11512 | -7/Lower Caves | Warlord Commander delivered Encrypted Comm Array 11519 | -7/Lower Caves | Found Encrypted Comm Array 11654 | -7/Lower Caves | Spotted B-75 Beast 11664 | -7/Lower Caves | Destroyed B-75 Beast 11708 | -7/Lower Caves | Learned 4 Factory zone layouts 12187 | -7/Lower Caves | Discovered new exit (range 6) 12195 | -7/Lower Caves | Entered another Lower Caves area 12405 | -7/Lower Caves | Discovered exit to Factory (range 5) 12792 | -7/Lower Caves | Learned Factory garrison access intel 12875 | -7/Lower Caves | System corruption reached 10% 12898 | -7/Lower Caves | Attracted the attention of an 0b10 checkpoint 13019 | -7/Lower Caves | Imp. Weapon Cycler reconfigured into Item Mimic 13295 | -7/Lower Caves | Discovered new exit (range 7) 13309 | -7/Lower Caves | Entered Zion 13486 | -7/Zion | System corruption cleaned by Quarantine Array 13694 | -7/Zion | Discovered new exit (range 15) 13710 | -7/Zion | Given the Hacking Drone Bay 13905 | -7/Zion | Learned Factory emergency access door positions 14147 | -7/Zion | Learned Factory trap positions 14312 | -7/Zion | Found Prototype Device 14312 | -7/Zion | Identified Mobile Refinery Mk. CCLXVII 14496 | -7/Zion | Met Imprinter 14627 | -7/Zion | Acquired unknown access codes intercepted by a Zionite 14742 | -7/Zion | Learned location of Data Miner (-6) 15041 | -7/Zion | Found Prototype Special Weapon 15044 | -7/Zion | Found Prototype Special Weapon 15047 | -7/Zion | Found Prototype Special Weapon 15051 | -7/Zion | Identified RU-N14's Throwing Claymores (x3) 15053 | -7/Zion | Found RU-N14's Throwing Claymores 15263 | -7/Zion | Found Prototype Device 15716 | -7/Zion | Opened final containment barrier to the Deep Caves 15759 | -7/Zion | Discovered new exit (range 3) 15759 | -7/Zion | Saw the warning signs outside the Deep Caves entrance 15764 | -7/Zion | Entered Deep Caves 16130 | -7/Deep Caves | X0-1V1 poked a wall 16140 | -7/Deep Caves | Attacked by Z-Imprinter 16146 | -7/Deep Caves | Destroyed Z-Imprinter 16382 | -7/Deep Caves | Z-Facility disabled 16462 | -7/Deep Caves | Build established: Scavenger-Mutant 16511 | -7/Deep Caves | Found Prototype Protection 16511 | -7/Deep Caves | Identified Zio. Weapon Casing 16775 | -7/Deep Caves | Build established: Scavenger-Gunner 17109 | -7/Deep Caves | Core integrity fell below 50% 17152 | -7/Deep Caves | Core integrity fell below 20% 17158 | -7/Deep Caves | X0-1V1 rescued you from certain death 17176 | -7/Deep Caves | Destroyed 56 combat bots 17188 | -7/Deep Caves | Lost 20 parts (2p5n4u9w) 17206 | -7/Deep Caves | Released all parts (1) 17206 | -7/Deep Caves | Spotted Assembler 17231 | -7/Deep Caves | Discovered new exit (range 6) 17233 | -7/Deep Caves | Entered Proximity Caves 17237 | -6/Proximity Caves | Self-destructed Last Messages --------------- X0-1V1 is amused. X0-1V1 takes a morbid interest in your temporary survival. Core integrity partially restored (418). The surroundings shift and blur. 0G4BN4BKHFO:N W 7/